[Event "Open Nuevo Centro. Jornada 1"]
[Site "Chess.com"]
[Date "2020.06.19"]
[Round "1"]
[White "Pitarch Soriano, Pablo"]
[Black "Gracia Calvo, Andres"]
[Result "0-1"]
[WhiteElo "1093"]
[BlackElo "1837"]
[TimeControl "180+2"]
[EndTime "10:36:48 PDT"]
[Termination "Victoria de andresjaque21 por jaque mate"]

1. e4 {[%clk 0:03:01.8]} 1... d5 {[%clk 0:03:00.8]} 2. Nc3 {[%clk 0:03:03.3]}
2... d4 {[%clk 0:03:01.2]} 3. Nb5 {[%clk 0:03:03.5]} 3... c5 {[%clk 0:03:01.4]}
4. Nf3 {[%clk 0:02:59.5]} 4... Nc6 {[%clk 0:03:01]} 5. Be2 {[%clk 0:02:59.7]}
5... e5 {[%clk 0:03:01.2]} 6. O-O {[%clk 0:03:00.5]} 6... a6 {[%clk 0:03:00.9]}
7. Na3 {[%clk 0:03:01.3]} 7... Be6 {[%clk 0:03:00.8]} 8. Bc4 {[%clk 0:03:01.7]}
8... Qd7 {[%clk 0:02:50.5]} 9. Bxe6 {[%clk 0:03:00.7]} 9... Qxe6 {[%clk
0:02:50.7]} 10. d3 {[%clk 0:02:58.3]} 10... Nge7 {[%clk 0:02:49.7]} 11. Ng5
{[%clk 0:02:58.8]} 11... Qd6 {[%clk 0:02:46.2]} 12. Qf3 {[%clk 0:02:54.7]} 12...
f6 {[%clk 0:02:44.9]} 13. Nc4 {[%clk 0:02:52.2]} 13... Qd7 {[%clk 0:02:41.1]}
14. Nh3 {[%clk 0:02:49.7]} 14... b5 {[%clk 0:02:41.1]} 15. Nb6 {[%clk
0:02:50.6]} 15... Qb7 {[%clk 0:02:39.4]} 16. Nxa8 {[%clk 0:02:51.3]} 16... Qxa8
{[%clk 0:02:40.3]} 17. c3 {[%clk 0:02:51.3]} 17... Qc8 {[%clk 0:02:38.8]} 18.
cxd4 {[%clk 0:02:51.8]} 18... Nxd4 {[%clk 0:02:39.8]} 19. Qd1 {[%clk 0:02:51.2]}
19... Nec6 {[%clk 0:02:39.5]} 20. Be3 {[%clk 0:02:50.8]} 20... Bd6 {[%clk
0:02:39.2]} 21. Bxd4 {[%clk 0:02:51.5]} 21... Nxd4 {[%clk 0:02:40.2]} 22. Qh5+
{[%clk 0:02:36.9]} 22... Ke7 {[%clk 0:02:36.3]} 23. Qd1 {[%clk 0:02:33.6]} 23...
Qc7 {[%clk 0:02:32]} 24. Rc1 {[%clk 0:02:33.6]} 24... Rc8 {[%clk 0:02:30.4]} 25.
b4 {[%clk 0:02:33.8]} 25... c4 {[%clk 0:02:28.6]} 26. dxc4 {[%clk 0:02:34.1]}
26... bxc4 {[%clk 0:02:29.3]} 27. Qg4 {[%clk 0:02:28.6]} 27... Kf7 {[%clk
0:02:26.4]} 28. Qh5+ {[%clk 0:02:23.5]} 28... Kg8 {[%clk 0:02:25]} 29. Rc3
{[%clk 0:02:10.9]} 29... Bxb4 {[%clk 0:02:21.5]} 30. Rcc1 {[%clk 0:02:06.3]}
30... Qc6 {[%clk 0:02:11.9]} 31. Qd1 {[%clk 0:01:54.5]} 31... c3 {[%clk
0:02:00.5]} 32. f3 {[%clk 0:01:44]} 32... Qc5 {[%clk 0:01:58.4]} 33. Kh1 {[%clk
0:01:43]} 33... Qc4 {[%clk 0:01:56.8]} 34. Re1 {[%clk 0:01:40.6]} 34... a5
{[%clk 0:01:52.3]} 35. Qa4 {[%clk 0:01:39.8]} 35... c2 {[%clk 0:01:31.6]} 36.
Re3 {[%clk 0:01:38.3]} 36... Bd2 {[%clk 0:01:26.1]} 37. Qxc4+ {[%clk 0:01:37.3]}
37... Rxc4 {[%clk 0:01:26.1]} 38. Ra3 {[%clk 0:01:35]} 38... Bxc1 {[%clk
0:01:25.7]} 39. Rxa5 {[%clk 0:01:36.4]} 39... Bd2 {[%clk 0:01:23.2]} 40. Ra8+
{[%clk 0:01:35.5]} 40... Kf7 {[%clk 0:01:23.8]} 41. Kg1 {[%clk 0:01:33.5]} 41...
c1=Q+ {[%clk 0:01:24.2]} 42. Kf2 {[%clk 0:01:35.4]} 42... Qe1# {[%clk
0:01:22.9]} 0

[Event "Open Nuevo Centro. Jornada 1"]
[Site "Chess.com"]
[Date "2020.06.19"]
[Round "1"]
[White "Garcia Navasquillo, Julia"]
[Black "Gerona Maura, Jesus"]
[Result "0-1"]
[WhiteElo "399"]
[BlackElo "1511"]
[TimeControl "180+2"]
[EndTime "10:36:50 PDT"]
[Termination "Victoria de Retistente por tiempo"]

1. e4 {[%clk 0:02:58.6]} 1... c5 {[%clk 0:02:59.8]} 2. Nf3 {[%clk 0:02:57]} 2...
Nc6 {[%clk 0:03:00.2]} 3. Nc3 {[%clk 0:02:56]} 3... Nf6 {[%clk 0:03:00.2]} 4.
Bb5 {[%clk 0:02:54.5]} 4... Nd4 {[%clk 0:02:59.8]} 5. Nxd4 {[%clk 0:02:49.9]}
5... cxd4 {[%clk 0:03:00.6]} 6. Ne2 {[%clk 0:02:38.3]} 6... Nxe4 {[%clk
0:03:00.8]} 7. f3 {[%clk 0:02:08.4]} 7... Nd6 {[%clk 0:02:55.8]} 8. Bd3 {[%clk
0:02:04.2]} 8... e5 {[%clk 0:02:53.1]} 9. c3 {[%clk 0:01:44.1]} 9... Qb6 {[%clk
0:02:38.9]} 10. Bc2 {[%clk 0:01:35.5]} 10... Be7 {[%clk 0:02:32.9]} 11. d3
{[%clk 0:01:31.3]} 11... dxc3 {[%clk 0:02:32.6]} 12. Nxc3 {[%clk 0:01:23.3]}
12... Qc6 {[%clk 0:02:30.2]} 13. O-O {[%clk 0:01:08.9]} 13... O-O {[%clk
0:02:30.7]} 14. Be3 {[%clk 0:01:05.3]} 14... f5 {[%clk 0:02:29.4]} 15. Qe2
{[%clk 0:00:50.2]} 15... f4 {[%clk 0:02:28.2]} 16. Bf2 {[%clk 0:00:45.5]} 16...
Nf7 {[%clk 0:02:26.1]} 17. Be1 {[%clk 0:00:38.6]} 17... d6 {[%clk 0:02:24.2]}
18. Ba4 {[%clk 0:00:18]} 18... Qc7 {[%clk 0:02:21.6]} 19. Bf2 {[%clk 0:00:18.4]}
19... Be6 {[%clk 0:02:19.1]} 20. b3 {[%clk 0:00:18.6]} 20... Qxc3 {[%clk
0:02:18.7]} 21. Bb5 {[%clk 0:00:15.6]} 21... Qb4 {[%clk 0:02:17.5]} 22. Ba4
{[%clk 0:00:14.8]} 22... b5 {[%clk 0:02:17.5]} 23. Kh1 {[%clk 0:00:14.8]} 23...
bxa4 {[%clk 0:02:17.6]} 24. a3 {[%clk 0:00:15.4]} 24... Qxb3 {[%clk 0:02:17.8]}
25. Rab1 {[%clk 0:00:14.3]} 25... Qa2 {[%clk 0:02:18.1]} 26. Ra1 {[%clk
0:00:14]} 26... Qxe2 {[%clk 0:02:18.6]} 27. Rfe1 {[%clk 0:00:12.1]} 27... Qxf2
{[%clk 0:02:18.7]} 28. Rf1 {[%clk 0:00:08]} 28... Qe2 {[%clk 0:02:17.6]} 29.
Rae1 {[%clk 0:00:07.6]} 29... Qxd3 {[%clk 0:02:18.5]} 30. Rd1 {[%clk 0:00:03.8]}
30... Qxa3 {[%clk 0:02:19.1]} 31. Ra1 {[%clk 0:00:03.7]} 31... Qc5 {[%clk
0:02:16.9]} 32. Rac1 {[%clk 0:00:03.4]} 32... Qa5 {[%clk 0:02:17.7]} 33. Rce1
{[%clk 0:00:03.9]} 33... Rfc8 {[%clk 0:02:18.2]} 34. Kg1 {[%clk 0:00:04.7]}
34... Rc2 {[%clk 0:02:18.7]} 35. Rf2 {[%clk 0:00:04.2]} 35... Qxe1+ {[%clk
0:02:16.5]} 0

[Event "Open Nuevo Centro. Jornada 1"]
[Site "Chess.com"]
[Date "2020.06.19"]
[Round "1"]
[White "Beneyto de Ramon, Guillermo"]
[Black "Granero Roca, Antonio"]
[Result "0-1"]
[WhiteElo "1488"]
[BlackElo "2523"]
[TimeControl "180+2"]
[EndTime "10:36:57 PDT"]
[Termination "Victoria de Somtor por abandono"]

1. c4 {[%clk 0:02:58.7]} 1... Nf6 {[%clk 0:03:00.2]} 2. Nc3 {[%clk 0:02:58.8]}
2... g6 {[%clk 0:03:01]} 3. g3 {[%clk 0:03:00]} 3... Bg7 {[%clk 0:03:01.9]} 4.
Bg2 {[%clk 0:03:00.6]} 4... O-O {[%clk 0:03:02.3]} 5. Nf3 {[%clk 0:03:01.4]}
5... d6 {[%clk 0:03:03.1]} 6. O-O {[%clk 0:03:01.9]} 6... c5 {[%clk 0:03:03.9]}
7. d3 {[%clk 0:03:02.8]} 7... Nc6 {[%clk 0:03:02.3]} 8. Bg5 {[%clk 0:03:03.1]}
8... Qd7 {[%clk 0:03:00.9]} 9. Bxf6 {[%clk 0:03:00.6]} 9... Bxf6 {[%clk
0:03:00.7]} 10. Nd5 {[%clk 0:03:01.5]} 10... Bg7 {[%clk 0:03:01.5]} 11. e4
{[%clk 0:02:54.4]} 11... Bxb2 {[%clk 0:02:57.2]} 12. Rb1 {[%clk 0:02:55.4]}
12... Bg7 {[%clk 0:02:57.8]} 13. Ng5 {[%clk 0:02:39.4]} 13... e6 {[%clk
0:02:53.6]} 14. Bh3 {[%clk 0:02:31.7]} 14... Qd8 {[%clk 0:02:41.2]} 15. Ne3
{[%clk 0:02:17.4]} 15... Qxg5 {[%clk 0:02:40.5]} 16. f4 {[%clk 0:02:12.2]} 16...
Qe7 {[%clk 0:02:41]} 17. Bg2 {[%clk 0:02:13]} 17... b6 {[%clk 0:02:40.3]} 18. e5
{[%clk 0:02:02]} 18... Bb7 {[%clk 0:02:40.8]} 19. Ng4 {[%clk 0:01:52.5]} 19...
Rfd8 {[%clk 0:02:31.3]} 20. Nf2 {[%clk 0:01:51.8]} 20... Nd4 {[%clk 0:02:28.9]}
21. Bxb7 {[%clk 0:01:40.6]} 21... Qxb7 {[%clk 0:02:29]} 22. Ne4 {[%clk
0:01:40.3]} 22... dxe5 {[%clk 0:02:22.6]} 23. fxe5 {[%clk 0:01:39.6]} 23... Bxe5
{[%clk 0:02:21]} 24. Qe1 {[%clk 0:01:32.9]} 24... Qc6 {[%clk 0:02:16.4]} 25. Qf2
{[%clk 0:01:31.8]} 25... f5 {[%clk 0:02:14.1]} 26. Ng5 {[%clk 0:01:19.8]} 26...
Bf6 {[%clk 0:02:12]} 27. Nh3 {[%clk 0:01:08.9]} 27... Rd7 {[%clk 0:02:04.6]} 28.
Nf4 {[%clk 0:01:08.7]} 28... Rad8 {[%clk 0:02:04.2]} 29. Rfe1 {[%clk 0:00:59.9]}
29... Nf3+ {[%clk 0:01:58.2]} 30. Kf1 {[%clk 0:00:56.2]} 30... Nxe1 {[%clk
0:01:49.3]} 31. Rxe1 {[%clk 0:00:57.1]} 31... e5 {[%clk 0:01:50.2]} 32. Nd5
{[%clk 0:00:56.3]} 32... Rxd5 {[%clk 0:01:50.9]} 33. cxd5 {[%clk 0:00:57.2]}
33... Qxd5 {[%clk 0:01:52.5]} 34. Qd2 {[%clk 0:00:56.6]} 34... Qxd3+ {[%clk
0:01:48.4]} 35. Qxd3 {[%clk 0:00:55]} 35... Rxd3 {[%clk 0:01:49.8]} 36. Re2
{[%clk 0:00:49.3]} 36... e4 {[%clk 0:01:50.3]} 37. Kg2 {[%clk 0:00:50]} 37... c4
{[%clk 0:01:50.8]} 38. Kf2 {[%clk 0:00:49.5]} 38... c3 {[%clk 0:01:51.6]} 39.
Ke1 {[%clk 0:00:44.9]} 39... b5 {[%clk 0:01:49.7]} 0

[Event "Open Nuevo Centro. Jornada 1"]
[Site "Chess.com"]
[Date "2020.06.19"]
[Round "1"]
[White "Blanco Solaz, Ram�n"]
[Black "R�os Valle, Daniel "]
[Result "1-0"]
[WhiteElo "1982"]
[BlackElo "1167"]
[TimeControl "180+2"]
[EndTime "10:36:59 PDT"]
[Termination "Victoria de Rbs77 por tiempo"]

1. e4 {[%clk 0:02:52.5]} 1... c5 {[%clk 0:03:00.3]} 2. d4 {[%clk 0:02:53.3]}
2... cxd4 {[%clk 0:02:59.6]} 3. c3 {[%clk 0:02:54.8]} 3... dxc3 {[%clk
0:02:59.7]} 4. Nxc3 {[%clk 0:02:56.7]} 4... Nf6 {[%clk 0:02:58.7]} 5. Bc4 {[%clk
0:02:58.2]} 5... e6 {[%clk 0:02:58.5]} 6. Nf3 {[%clk 0:02:59.6]} 6... Bb4 {[%clk
0:02:58.4]} 7. O-O {[%clk 0:03:00.8]} 7... Bxc3 {[%clk 0:02:52]} 8. bxc3 {[%clk
0:03:02.7]} 8... Nxe4 {[%clk 0:02:52.3]} 9. Qb3 {[%clk 0:03:03.4]} 9... d5
{[%clk 0:02:50.2]} 10. Bd3 {[%clk 0:03:00.7]} 10... Nf6 {[%clk 0:02:32.3]} 11.
Ba3 {[%clk 0:02:59.1]} 11... Nc6 {[%clk 0:02:21.7]} 12. Rfe1 {[%clk 0:02:57.1]}
12... Qc7 {[%clk 0:02:17]} 13. Rac1 {[%clk 0:02:48.7]} 13... Bd7 {[%clk
0:02:14.2]} 14. Qb1 {[%clk 0:02:32.9]} 14... h6 {[%clk 0:02:06]} 15. c4 {[%clk
0:02:33.3]} 15... Qa5 {[%clk 0:02:00.3]} 16. Bd6 {[%clk 0:02:29.9]} 16... dxc4
{[%clk 0:01:35.6]} 17. Qxb7 {[%clk 0:02:21.3]} 17... Rd8 {[%clk 0:00:54.5]} 18.
Bxc4 {[%clk 0:02:18.3]} 18... Qb6 {[%clk 0:00:37.1]} 19. Rb1 {[%clk 0:02:06.3]}
19... Qxb7 {[%clk 0:00:31.1]} 20. Rxb7 {[%clk 0:02:08.2]} 20... Na5 {[%clk
0:00:29.5]} 21. Rb4 {[%clk 0:02:08.7]} 21... Nxc4 {[%clk 0:00:27.9]} 22. Rxc4
{[%clk 0:02:10.6]} 22... Bb5 {[%clk 0:00:25.8]} 23. Rd4 {[%clk 0:02:12.2]} 23...
Bc6 {[%clk 0:00:19.6]} 24. Ne5 {[%clk 0:02:12.1]} 24... Ba8 {[%clk 0:00:18.3]}
25. f3 {[%clk 0:02:09.8]} 25... g6 {[%clk 0:00:15.1]} 26. Rc1 {[%clk 0:02:07.4]}
26... Nd7 {[%clk 0:00:12.8]} 27. Nd3 {[%clk 0:01:26.8]} 27... Bd5 {[%clk
0:00:08.7]} 28. Rc7 {[%clk 0:01:27]} 1

[Event "Open Nuevo Centro. Jornada 1"]
[Site "Chess.com"]
[Date "2020.06.19"]
[Round "1"]
[White "Mart�nez Cuenca, Adri�n "]
[Black "Rodriguez Rodriguez, Joan David "]
[Result "0-1"]
[WhiteElo "794"]
[BlackElo "1628"]
[TimeControl "180+2"]
[EndTime "10:36:59 PDT"]
[Termination "Victoria de Not_Jr_chess por jaque mate"]

1. e4 {[%clk 0:03:00.5]} 1... e5 {[%clk 0:02:56.7]} 2. Nf3 {[%clk 0:02:58.7]}
2... Nc6 {[%clk 0:02:57.6]} 3. Nc3 {[%clk 0:02:54.9]} 3... Nf6 {[%clk
0:02:35.3]} 4. b3 {[%clk 0:02:36.5]} 4... h6 {[%clk 0:02:30.2]} 5. g3 {[%clk
0:02:26.6]} 5... Bb4 {[%clk 0:02:29.9]} 6. Bg2 {[%clk 0:02:24.8]} 6... O-O
{[%clk 0:02:30.5]} 7. O-O {[%clk 0:02:21.4]} 7... Bxc3 {[%clk 0:02:29.7]} 8.
dxc3 {[%clk 0:02:16.5]} 8... Nxe4 {[%clk 0:02:30.1]} 9. Nd2 {[%clk 0:02:08.8]}
9... Nxc3 {[%clk 0:02:29.3]} 10. Qh5 {[%clk 0:01:56.3]} 10... d6 {[%clk
0:02:17.7]} 11. Nc4 {[%clk 0:01:52.3]} 11... Qf6 {[%clk 0:02:08.4]} 12. f4
{[%clk 0:01:21.2]} 12... exf4 {[%clk 0:01:55.6]} 13. gxf4 {[%clk 0:01:21]} 13...
Ne2+ {[%clk 0:01:27.8]} 14. Kf2 {[%clk 0:01:12.2]} 14... Nxf4 {[%clk 0:01:12.1]}
15. Kg1 {[%clk 0:00:54.5]} 15... Nxh5 {[%clk 0:01:11.6]} 16. Ne3 {[%clk
0:00:32.3]} 16... Qxa1 {[%clk 0:01:08.9]} 17. h4 {[%clk 0:00:31.3]} 17... Ng3
{[%clk 0:01:06.1]} 18. Kh2 {[%clk 0:00:29.3]} 18... Nxf1+ {[%clk 0:01:06.6]} 19.
Bxf1 {[%clk 0:00:22.7]} 19... Qxc1 {[%clk 0:01:07.5]} 20. Bb5 {[%clk 0:00:18.2]}
20... Qxe3 {[%clk 0:01:04.5]} 21. Bxc6 {[%clk 0:00:17]} 21... bxc6 {[%clk
0:01:06.4]} 22. Kg2 {[%clk 0:00:10.5]} 22... Bg4 {[%clk 0:01:06.2]} 23. b4
{[%clk 0:00:10.8]} 23... Qf3+ {[%clk 0:01:06.1]} 24. Kh2 {[%clk 0:00:06.3]}
24... Qf2+ {[%clk 0:01:06.6]} 25. Kh1 {[%clk 0:00:06.3]} 25... Bf3# {[%clk
0:01:08]} 0

[Event "Open Nuevo Centro. Jornada 1"]
[Site "Chess.com"]
[Date "2020.06.19"]
[Round "1"]
[White "M�ndez Gim�nez , N�stor Emmanuel"]
[Black "Movsisyan, Tigran"]
[Result "0-1"]
[WhiteElo "1144"]
[BlackElo "1887"]
[TimeControl "180+2"]
[EndTime "10:37:05 PDT"]
[Termination "Victoria de USHADIRvzgo por jaque mate"]

1. e4 {[%clk 0:02:55.8]} 1... c5 {[%clk 0:03:00.1]} 2. Nf3 {[%clk 0:02:56.8]}
2... e5 {[%clk 0:02:59.2]} 3. d4 {[%clk 0:02:58.7]} 3... exd4 {[%clk 0:02:59.3]}
4. c3 {[%clk 0:02:59.2]} 4... d5 {[%clk 0:02:26.6]} 5. cxd4 {[%clk 0:02:58.6]}
5... dxe4 {[%clk 0:02:25.9]} 6. Nfd2 {[%clk 0:02:49.5]} 6... Nf6 {[%clk
0:02:19.7]} 7. Bb5+ {[%clk 0:02:46.6]} 7... Bd7 {[%clk 0:02:01]} 8. Bxd7+ {[%clk
0:02:46.6]} 8... Qxd7 {[%clk 0:02:02.6]} 9. Nc3 {[%clk 0:02:45.6]} 9... cxd4
{[%clk 0:02:00.5]} 10. Ncxe4 {[%clk 0:02:45.8]} 10... Nxe4 {[%clk 0:02:00.4]}
11. Nxe4 {[%clk 0:02:46.1]} 11... Nc6 {[%clk 0:02:01.6]} 12. O-O {[%clk
0:02:46]} 12... Be7 {[%clk 0:01:59.4]} 13. Bf4 {[%clk 0:02:41.3]} 13... O-O
{[%clk 0:01:58.4]} 14. Qc2 {[%clk 0:02:30.9]} 14... Rac8 {[%clk 0:01:50.4]} 15.
Bg5 {[%clk 0:02:29.8]} 15... Nb4 {[%clk 0:01:16]} 16. Qb1 {[%clk 0:02:19.9]}
16... Nc2 {[%clk 0:01:14.5]} 17. Bxe7 {[%clk 0:02:19.6]} 17... Qxe7 {[%clk
0:01:13.2]} 18. Nd2 {[%clk 0:02:11.8]} 18... Nxa1 {[%clk 0:01:11.7]} 19. Qxa1
{[%clk 0:02:11.9]} 19... Rc2 {[%clk 0:01:11.6]} 20. Re1 {[%clk 0:02:07.3]} 20...
Qf6 {[%clk 0:01:08]} 21. Ne4 {[%clk 0:02:05.6]} 21... Qb6 {[%clk 0:01:05.4]} 22.
b3 {[%clk 0:02:01.7]} 22... d3 {[%clk 0:01:03.1]} 23. Qb1 {[%clk 0:01:57.3]}
23... Rfc8 {[%clk 0:00:55.6]} 24. h3 {[%clk 0:01:40.6]} 24... d2 {[%clk
0:00:55]} 25. Nc3 {[%clk 0:01:33]} 25... dxe1=Q+ {[%clk 0:00:53.1]} 26. Qxe1
{[%clk 0:01:31.8]} 26... R2xc3 {[%clk 0:00:53.7]} 27. a4 {[%clk 0:01:31.8]}
27... Rc1 {[%clk 0:00:53.8]} 28. Qxc1 {[%clk 0:01:31.8]} 28... Rxc1+ {[%clk
0:00:55.2]} 29. Kh2 {[%clk 0:01:33.7]} 29... Qxb3 {[%clk 0:00:55.2]} 30. f3
{[%clk 0:01:34.2]} 30... Qd1 {[%clk 0:00:54.8]} 31. Kg3 {[%clk 0:01:34.6]} 31...
Qf1 {[%clk 0:00:55.1]} 32. Kf4 {[%clk 0:01:34.1]} 32... Rc2 {[%clk 0:00:56.7]}
33. g4 {[%clk 0:01:34.7]} 33... Qxh3 {[%clk 0:00:56.3]} 34. Kg5 {[%clk
0:01:34.3]} 34... h6+ {[%clk 0:00:55.8]} 35. Kf4 {[%clk 0:01:34.9]} 35... Rc4+
{[%clk 0:00:57.2]} 36. Ke3 {[%clk 0:01:35.4]} 36... Qxf3+ {[%clk 0:00:57.3]} 37.
Kxf3 {[%clk 0:01:35.3]} 37... Rxa4 {[%clk 0:00:58.8]} 38. Kg3 {[%clk 0:01:35.6]}
38... Rxg4+ {[%clk 0:01:00.3]} 39. Kxg4 {[%clk 0:01:36.1]} 39... a5 {[%clk
0:01:01.7]} 40. Kf3 {[%clk 0:01:37]} 40... a4 {[%clk 0:01:03.2]} 41. Ke2 {[%clk
0:01:38.9]} 41... a3 {[%clk 0:01:03.4]} 42. Kd1 {[%clk 0:01:40.8]} 42... a2
{[%clk 0:01:04.5]} 43. Kc1 {[%clk 0:01:42.7]} 43... a1=Q+ {[%clk 0:01:05.8]} 44.
Kc2 {[%clk 0:01:43.9]} 44... Qa3 {[%clk 0:01:06.2]} 45. Kd2 {[%clk 0:01:44.6]}
45... Qh3 {[%clk 0:01:07.3]} 46. Kd1 {[%clk 0:01:46.5]} 46... b5 {[%clk
0:01:08.1]} 47. Kc1 {[%clk 0:01:48.4]} 47... b4 {[%clk 0:01:09.5]} 48. Kd1
{[%clk 0:01:50.3]} 48... b3 {[%clk 0:01:10.9]} 49. Kc1 {[%clk 0:01:51.6]} 49...
Qc3+ {[%clk 0:01:11.2]} 50. Kb1 {[%clk 0:01:53.5]} 50... Qc2+ {[%clk 0:01:11.7]}
51. Ka1 {[%clk 0:01:54.8]} 51... Qa2# {[%clk 0:01:12.4]} 0

[Event "Open Nuevo Centro. Jornada 1"]
[Site "Chess.com"]
[Date "2020.06.19"]
[Round "1"]
[White "Limaymanta Solis, Luis Anderson"]
[Black "Gutierrez Marco, Dario"]
[Result "0-1"]
[WhiteElo "1147"]
[BlackElo "1950"]
[TimeControl "180+2"]
[EndTime "10:37:14 PDT"]
[Termination "Victoria de rususs por jaque mate"]

1. e3 {[%clk 0:03:01.9]} 1... c5 {[%clk 0:02:57.7]} 2. b3 {[%clk 0:03:03.3]}
2... Nf6 {[%clk 0:02:56.5]} 3. Nf3 {[%clk 0:03:02.8]} 3... b6 {[%clk 0:02:56.6]}
4. g3 {[%clk 0:03:03.1]} 4... Bb7 {[%clk 0:02:57.1]} 5. Bg2 {[%clk 0:03:04.6]}
5... e6 {[%clk 0:02:58.3]} 6. O-O {[%clk 0:03:03.7]} 6... Be7 {[%clk 0:02:58.8]}
7. Bb2 {[%clk 0:03:03.4]} 7... O-O {[%clk 0:02:58.9]} 8. Nc3 {[%clk 0:03:02.1]}
8... Nc6 {[%clk 0:02:57.8]} 9. d4 {[%clk 0:02:55.5]} 9... d5 {[%clk 0:02:50.4]}
10. dxc5 {[%clk 0:02:55.8]} 10... bxc5 {[%clk 0:02:51.3]} 11. Nb5 {[%clk
0:02:54.8]} 11... a6 {[%clk 0:02:47]} 12. Nc3 {[%clk 0:02:54.5]} 12... Qc7
{[%clk 0:02:39.2]} 13. Ne2 {[%clk 0:02:54.6]} 13... Rfd8 {[%clk 0:02:38.5]} 14.
Nf4 {[%clk 0:02:48.7]} 14... e5 {[%clk 0:02:30.7]} 15. Nh3 {[%clk 0:02:43.6]}
15... e4 {[%clk 0:02:24.3]} 16. Ne1 {[%clk 0:02:35.9]} 16... d4 {[%clk
0:02:17.1]} 17. exd4 {[%clk 0:02:34.7]} 17... Nxd4 {[%clk 0:02:13.5]} 18. Bxd4
{[%clk 0:02:31.2]} 18... cxd4 {[%clk 0:02:11.1]} 19. Rc1 {[%clk 0:02:25.5]}
19... Qb6 {[%clk 0:02:05.1]} 20. Nf4 {[%clk 0:02:18.4]} 20... Bc5 {[%clk
0:01:56.1]} 21. h4 {[%clk 0:02:09.2]} 21... e3 {[%clk 0:01:52.3]} 22. Bxb7
{[%clk 0:02:08.6]} 22... Qxb7 {[%clk 0:01:54.2]} 23. fxe3 {[%clk 0:02:06.4]}
23... dxe3 {[%clk 0:01:54.4]} 24. Kh2 {[%clk 0:02:03.4]} 24... Rxd1 {[%clk
0:01:52.9]} 25. Rxd1 {[%clk 0:02:03.3]} 25... Ng4+ {[%clk 0:01:44.9]} 26. Kh3
{[%clk 0:01:58.2]} 26... Nf2+ {[%clk 0:01:44.7]} 27. Kh2 {[%clk 0:01:58]} 27...
Nxd1 {[%clk 0:01:41.6]} 28. Ned3 {[%clk 0:01:59.4]} 28... e2 {[%clk 0:01:11.9]}
29. Nxe2 {[%clk 0:01:59.1]} 29... Ne3 {[%clk 0:01:09.7]} 30. Rg1 {[%clk
0:01:51]} 30... Ba7 {[%clk 0:01:06.1]} 31. Nef4 {[%clk 0:01:49.6]} 31... Ng4+
{[%clk 0:01:05.5]} 32. Kh3 {[%clk 0:01:49.1]} 32... Bxg1 {[%clk 0:01:04]} 33.
Kxg4 {[%clk 0:01:48.8]} 33... Qd7+ {[%clk 0:01:03.1]} 34. Kf3 {[%clk 0:01:46.9]}
34... Rc8 {[%clk 0:00:59.5]} 35. Ne5 {[%clk 0:01:43.3]} 35... Qd1+ {[%clk
0:00:58.2]} 36. Ne2 {[%clk 0:01:30.5]} 36... Rxc2 {[%clk 0:00:57.5]} 37. Kf4
{[%clk 0:01:24.5]} 37... Rxe2 {[%clk 0:00:56.7]} 38. Nf3 {[%clk 0:01:21.6]}
38... Be3+ {[%clk 0:00:54.7]} 39. Kg4 {[%clk 0:01:20.3]} 39... Rf2 {[%clk
0:00:53.9]} 40. h5 {[%clk 0:01:18.1]} 40... Qxf3+ {[%clk 0:00:54.2]} 41. Kh3
{[%clk 0:01:18.4]} 41... Qxh5# {[%clk 0:00:53.8]} 0

[Event "Open Nuevo Centro. Jornada 1"]
[Site "Chess.com"]
[Date "2020.06.19"]
[Round "1"]
[White "Yeste Campos, Manuel"]
[Black "G�mez Alonso, �scar"]
[Result "0-1"]
[WhiteElo "922"]
[BlackElo "1764"]
[TimeControl "180+2"]
[EndTime "10:37:16 PDT"]
[Termination "Victoria de osgo78 por jaque mate"]

1. e4 {[%clk 0:02:22.3]} 1... c5 {[%clk 0:03:00.2]} 2. Nf3 {[%clk 0:02:22.7]}
2... Nc6 {[%clk 0:02:56.7]} 3. d4 {[%clk 0:02:23.1]} 3... cxd4 {[%clk
0:02:58.6]} 4. Nxd4 {[%clk 0:02:23.9]} 4... e6 {[%clk 0:02:59.5]} 5. Nc3 {[%clk
0:02:22.7]} 5... Bb4 {[%clk 0:02:58.7]} 6. Bd2 {[%clk 0:02:22.8]} 6... Nge7
{[%clk 0:02:56.5]} 7. Bd3 {[%clk 0:02:17.5]} 7... d5 {[%clk 0:02:52.8]} 8. Nxc6
{[%clk 0:02:13.2]} 8... bxc6 {[%clk 0:02:53.1]} 9. exd5 {[%clk 0:02:14.3]} 9...
cxd5 {[%clk 0:02:52.8]} 10. O-O {[%clk 0:02:15.3]} 10... O-O {[%clk 0:02:52.4]}
11. Qh5 {[%clk 0:02:00.5]} 11... Ng6 {[%clk 0:02:43.3]} 12. a3 {[%clk
0:01:37.1]} 12... Be7 {[%clk 0:02:37.3]} 13. Rfe1 {[%clk 0:01:34.3]} 13... Bf6
{[%clk 0:02:37.4]} 14. Re3 {[%clk 0:01:25.8]} 14... e5 {[%clk 0:02:21]} 15. Rg3
{[%clk 0:01:24]} 15... e4 {[%clk 0:02:11.8]} 16. Nxe4 {[%clk 0:01:14.6]} 16...
dxe4 {[%clk 0:02:11.7]} 17. Bxe4 {[%clk 0:01:15.4]} 17... Rb8 {[%clk 0:02:04.5]}
18. Bf4 {[%clk 0:01:05]} 18... Rxb2 {[%clk 0:01:54.1]} 19. Rc1 {[%clk
0:00:41.3]} 19... Bb7 {[%clk 0:01:35]} 20. Bd3 {[%clk 0:00:26.4]} 20... Qd5
{[%clk 0:01:30.9]} 21. Qe2 {[%clk 0:00:19.1]} 21... Nxf4 {[%clk 0:01:26.1]} 22.
Qg4 {[%clk 0:00:19.5]} 22... Nxd3 {[%clk 0:01:02.6]} 23. Rd1 {[%clk 0:00:20.2]}
23... Rxc2 {[%clk 0:00:48.9]} 24. Rgxd3 {[%clk 0:00:18.9]} 24... Qe6 {[%clk
0:00:43.4]} 25. Re3 {[%clk 0:00:18.8]} 25... Qxg4 {[%clk 0:00:43.2]} 26. Rg3
{[%clk 0:00:19.6]} 26... Qxd1# {[%clk 0:00:43.8]} 0